fUSD/lending_fUSD_20240227
["ID","MTS","AMOUNT","RATE_DAILY","PERIOD"]
[315432221,1709031046282,-5000.0,0.00023,2]
[315432222,1709031046293,-5000.0,0.00023,2]
[315432224,1709031046303,-5000.0,0.00023,2]
[315432226,1709031046312,-5000.0,0.00023,2]
[315432228,1709031046321,-5000.0,0.00023,2]
[315432230,1709031046330,-4148.0,0.00023,2]
[315432232,1709031046340,-3000.0,0.00023,4]
[315432234,1709031046349,-511940.00100648,0.00023,2]
[315432253,1709031046520,-646.0,0.00021918,2]
[315432255,1709031046530,-6806.7342637,0.000229,2]
[315432257,1709031046539,-53597.64948399,0.00023,2]
[315432259,1709031046550,-44772.49373671,0.00023,2]
[315432262,1709031046562,-2016.15018606,0.00023,2]
[315432264,1709031046574,-660.41315515,0.00023,2]
[315432266,1709031046586,-7017.95850135,0.00023,2]
[315432268,1709031046598,-31285.53647651,0.00023,2]
[315432293,1709031046818,-152.9106692,0.00022769,2]
[315432294,1709031046828,-155.0,0.00022899,2]
[315432295,1709031046838,-247.88304082,0.000229,2]
[315432296,1709031046848,-234.23,0.00022989,3]
[315432297,1709031046858,-47847.65340072,0.00023,2]
[315432298,1709031046870,-615.56277098,0.00023,2]
[315432299,1709031046880,-1786.86818944,0.00023,2]
[315432300,1709031046892,-6739.42879367,0.00023,2]
[315432301,1709031046908,-767.79227565,0.00023,2]
[315432302,1709031046928,-23667.913987,0.00023,2]
[315432303,1709031046940,-60627.78042479,0.00023,2]
[315432304,1709031046952,-2826.38567684,0.00023,2]
[315432306,1709031046963,-276.90558802,0.00023,2]
[315432308,1709031046975,-1108.87164166,0.00023,2]
[315432326,1709031993161,-155.0,0.00018319,2]
[315432327,1709031993183,-46.02121565,0.0001832,2]
[315432328,1709032032779,77890.87893817,0.0003,120]
[315432329,1709032039098,-157.97878435,0.0001832,2]
[315432330,1709032039120,-1.19950754,0.0001883,2]
[315432331,1709032041096,-162.35842809,0.0001883,2]
[315432335,1709032166209,-333.0,0.00018827,2]
[315432336,1709032166231,-2928.05132031,0.00018829,2]
[315432337,1709032166252,-10249.44206437,0.0001883,2]
[315432338,1709032166273,-891.12089677,0.0001883,2]
[315432339,1709032166293,-2157.15808798,0.00019344,2]
[315432340,1709032166314,-843.91,0.00019351,2]
[315432341,1709032166334,-8900.0,0.0002,2]
[315432342,1709032166355,-62117.23614566,0.0002,3]
[315432343,1709032166374,-29343.44912783,0.0002,3]
[315432350,1709032231835,-155.0,0.00018829,2]
[315432352,1709032231845,-165.65455444,0.0001883,2]
[315432353,1709032231857,-464.31950373,0.0001883,2]
[315432354,1709032231867,-873.91752527,0.00019999,2]
[315432355,1709032231892,-2054.13379504,0.00019999,2]
[315432356,1709032231902,-32773.78701783,0.0002,3]
[315432357,1709032231911,-55732.38165273,0.0002,3]
[315432358,1709032231951,-333.00815705,0.0002,3]
[315432359,1709032232071,-986.46397527,0.0002,3]
[315432360,1709032232083,-1455.6236364,0.0002,3]
[315432361,1709032232095,-3609.75872421,0.0002,3]
[315432362,1709032232104,-11412.06211514,0.0002,3]
[315432363,1709032232116,-10189.74591082,0.0002,3]
[315432364,1709032232128,-467.35828416,0.0002,3]
[315432365,1709032232140,-1259.03570238,0.0002,3]
[315432366,1709032232152,-993.79654298,0.0002,3]
[315432367,1709032232164,-37795.23759018,0.0002,3]
[315432368,1709032232174,-62117.23614566,0.0002,3]
[315432369,1709032232183,-62117.23614566,0.0002,3]
[315432370,1709032232193,-62117.23614566,0.0002,3]
[315432371,1709032232202,-62117.23614566,0.0002,3]
[315432372,1709032232212,-62117.23614566,0.0002,3]
[315432373,1709032232221,-62117.23514566,0.0002,3]
[315432374,1709032232230,-1027.92025929,0.0002,3]
[315432375,1709032232240,-204.0,0.00020305,4]
[315432376,1709032232249,-250.0,0.00021021,2]
[315432377,1709032232258,-382.84,0.00021031,2]
[315432379,1709032232268,-150.0,0.00021044,2]
[315432381,1709032232277,-560.24,0.00021063,2]
[315432383,1709032232287,-1500.0,0.00021157,2]
[315432385,1709032232297,-500.0,0.00021182,2]
[315432386,1709032232307,-166.53418403,0.00021216,2]
[315432388,1709032232316,-23900.0,0.00021217,2]
[315432389,1709032232326,-2000.0,0.00021232,2]
[315432390,1709032232336,-551.53,0.00021232,2]
[315432391,1709032232346,-250.0,0.00021242,2]
[315432392,1709032232355,-169.49,0.00021251,2]
[315432393,1709032232365,-1120.97,0.0002136,2]
[315432394,1709032232374,-159.49,0.00021364,2]
[315432395,1709032232384,-202.79,0.00021464,2]
[315432396,1709032232394,-211.68,0.0002149,2]
[315432397,1709032232404,-448.47,0.00021508,2]
[315432398,1709032232413,-294.0,0.00021537,2]
[315432399,1709032232422,-150.0,0.00021537,2]
[315432400,1709032232431,-843.91,0.00021615,2]
[315432401,1709032232440,-1500.0,0.00021727,2]
[315432402,1709032232450,-29999.99,0.00021757,2]
[315432403,1709032232459,-1500.0,0.00021909,2]
[315432404,1709032232469,-162.12,0.00021918,2]
[315432405,1709032232478,-154.26,0.00021918,2]
[315432406,1709032232488,-930.79,0.00021918,2]
[315432407,1709032232497,-775.66,0.00021918,2]
[315432408,1709032232507,-775.66,0.00021918,2]
[315432409,1709032232516,-517.1,0.00021918,2]
[315432410,1709032232525,-430.92,0.00021918,2]
[315432411,1709032232535,-359.1,0.00021918,2]
[315432412,1709032232546,-299.25,0.00021918,2]
[315432413,1709032232556,-7421.0263907,0.00021978,2]
[315432414,1709032232565,-2671.5695007,0.00021978,2]
[315432415,1709032232574,-961.7650203,0.00021979,2]
[315432416,1709032232585,-961.7650203,0.00021979,2]
[315432417,1709032232598,-214.18892735,0.0002198,2]
[315432418,1709032232608,-180.04241183,0.0002198,2]
[315432419,1709032232617,-961.7650203,0.0002198,2]
[315432420,1709032232628,-411.90178337,0.00021982,2]
[315432421,1709032232637,-214.18892735,0.00021987,2]
[315432422,1709032232647,-1144.17162034,0.00021987,2]
[315432423,1709032232656,-411.90178337,0.00021987,2]
[315432424,1709032232666,-158.92507267,0.00021988,2]
[315432425,1709032232676,-346.23540735,0.00021988,2]
[315432426,1709032232686,-180.04241183,0.00021988,2]
[315432427,1709032232696,-1144.17162034,0.00021989,2]
[315432428,1709032232705,-7421.0263907,0.00021989,2]
[315432429,1709032232714,-2671.5695007,0.00021989,2]
[315432430,1709032232723,-214.18892735,0.00021989,2]
[315432431,1709032232733,-346.23540735,0.0002199,2]
[315432432,1709032232743,-180.04241183,0.00021991,2]
[315432433,1709032232752,-1144.17162034,0.00021991,2]
[315432434,1709032232762,-7421.0263907,0.00021991,2]
[315432435,1709032232771,-961.7650203,0.00021992,2]
[315432436,1709032232780,-411.90178337,0.00021992,2]
[315432437,1709032232790,-158.92507267,0.00021994,2]
[315432438,1709032232799,-158.92507267,0.00021994,2]
[315432439,1709032232809,-1144.17162034,0.00021994,2]
[315432440,1709032232818,-180.04241183,0.00021995,2]
[315432441,1709032232827,-158.92507267,0.00021995,2]
[315432442,1709032232836,-7421.0263907,0.00021995,2]
[315432443,1709032232846,-2671.5695007,0.00021998,2]
[315432444,1709032232856,-346.23540735,0.00021998,2]
[315432445,1709032232865,-2671.5695007,0.00021999,2]
[315432446,1709032232874,-411.90178337,0.00021999,2]
[315432447,1709032232883,-214.18892735,0.00021999,2]
[315432448,1709032232892,-346.23540735,0.00021999,2]
[315432449,1709032232901,-155.0,0.00022,2]
[315432450,1709032232911,-1750.0,0.00022,3]
[315432451,1709032232919,-150.0,0.00022046,2]
[315432452,1709032232929,-321.00876243,0.00022097,3]
[315432453,1709032232938,-275.01280618,0.00022097,3]
[315432454,1709032232947,-288.15868168,0.000221,3]
[315432455,1709032232957,-150.0,0.00022187,2]
[315432456,1709032232966,-154.26,0.00022231,2]
[315432457,1709032232975,-300.0,0.00022241,2]
[315432458,1709032232984,-150.0,0.00022243,2]
[315432459,1709032232993,-204.0,0.00022289,7]
[315432460,1709032233004,-150.0,0.00022315,2]
[315432461,1709032233013,-150.0,0.00022327,2]
[315432462,1709032233022,-150.0,0.00022375,2]
[315432463,1709032233032,-150.0,0.00022437,2]
[315432464,1709032233042,-150.0,0.0002246,2]
[315432465,1709032233051,-565.2902,0.00022462,2]
[315432466,1709032233060,-657.608,0.00022462,2]
[315432467,1709032233070,-166.57,0.00022473,2]
[315432468,1709032233080,-150.0,0.00022482,2]
[315432469,1709032233090,-1000.0,0.000225,2]
[315432470,1709032233099,-1057.0,0.000225,2]
[315432471,1709032233109,-150.0,0.00022537,2]
[315432472,1709032233118,-154.26,0.00022544,2]
[315432473,1709032233128,-942.61,0.00022585,2]
[315432474,1709032233137,-508.85,0.00022585,2]
[315432475,1709032233147,-1147.0,0.000226,2]
[315432476,1709032233156,-1000.0,0.000226,2]
[315432477,1709032233165,-294.0,0.00022633,2]
[315432478,1709032233175,-150.0,0.00022633,2]
[315432479,1709032233185,-150.0,0.00022634,2]
[315432480,1709032233196,-162.12,0.00022648,2]
[315432481,1709032233206,-258.45968532,0.00022655,2]
[315432482,1709032233216,-150.0,0.00022693,2]
[315432483,1709032233226,-2826.0,0.000227,2]
[315432484,1709032233235,-50000.0,0.000227,2]
[315432485,1709032233244,-1000.0,0.000227,2]
[315432486,1709032233254,-1000.0,0.000227,2]
[315432487,1709032233264,-560.24,0.00022707,2]
[315432488,1709032233274,-389.33355754,0.00022739,2]
[315432489,1709032233283,-500.0,0.00022739,2]
[315432490,1709032233296,-500.0,0.00022739,2]
[315432491,1709032233305,-500.0,0.00022739,2]
[315432492,1709032233315,-150.0,0.00022739,2]
[315432493,1709032233325,-500.0,0.00022739,2]
[315432494,1709032233335,-450.36903084,0.00022739,2]
[315432495,1709032233344,-500.0,0.00022739,2]
[315432496,1709032233354,-500.0,0.00022739,2]
[315432497,1709032233364,-537.49,0.00022739,2]
[315432498,1709032233375,-537.49,0.00022739,2]
[315432499,1709032233385,-537.49,0.00022739,2]
[315432500,1709032233395,-500.0,0.00022739,2]
[315432501,1709032233405,-500.0,0.00022739,2]
[315432502,1709032233415,-154.82,0.0002274,2]
[315432503,1709032233424,-155.46,0.0002274,2]
[315432504,1709032233434,-152.9106692,0.00022769,2]
[315432505,1709032233443,-1541.4357,0.00022799,2]
[315432506,1709032233453,-26681.5583,0.000228,2]
[315432507,1709032233463,-2552.7198,0.000228,2]
[315432508,1709032233473,-1000.0,0.000228,2]
[315432509,1709032233482,-393.28821762,0.000228,2]
[315432510,1709032233492,-800.0,0.00022815,2]
[315432511,1709032233501,-200.0,0.00022816,2]
[315432512,1709032233511,-800.0,0.00022816,2]
[315432513,1709032233521,-200.0,0.00022816,2]
[315432514,1709032233530,-150.0,0.00022836,2]
[315432515,1709032233541,-1319.92,0.00022849,2]
[315432516,1709032233551,-150.0,0.00022855,2]
[315432517,1709032233560,-154.26,0.00022857,2]
[315432518,1709032233569,-150.0,0.00022868,2]
[315432519,1709032233578,-150.0,0.00022884,2]
[315432520,1709032233592,-3539.66270005,0.00022893,2]
[315432521,1709032233601,-258.55298636,0.00022896,2]
[315432522,1709032233610,-777.84278996,0.00022898,2]
[315432523,1709032233619,-500.0,0.00022898,2]
[315432524,1709032233629,-157.02431342,0.00022898,2]
[315432525,1709032233638,-1095.9,0.00022898,2]
[315432526,1709032233648,-500.0,0.00022898,2]
[315432527,1709032233658,-500.0,0.00022898,2]
[315432528,1709032233670,-500.0,0.00022898,2]
[315432529,1709032233680,-1058.42,0.00022898,2]
[315432530,1709032233689,-500.0,0.00022898,2]
[315432531,1709032233699,-1056.59,0.00022898,2]
[315432532,1709032233709,-662.79,0.00022898,2]
[315432533,1709032233719,-500.0,0.00022898,2]
[315432534,1709032233731,-3065.67,0.00022898,2]
[315432535,1709032233740,-500.0,0.00022898,2]
[315432536,1709032233750,-500.0,0.00022898,2]
[315432537,1709032233760,-500.0,0.00022898,2]
[315432538,1709032233769,-622.14,0.00022898,2]
[315432539,1709032233778,-500.0,0.00022898,2]
[315432540,1709032233788,-500.0,0.00022899,2]
[315432541,1709032233798,-500.0,0.00022899,2]
[315432542,1709032233808,-499.50438126,0.00022899,2]
[315432543,1709032233818,-500.0,0.00022899,2]
[315432544,1709032233829,-295.68268872,0.00022899,2]
[315432545,1709032233839,-500.0,0.00022899,2]
[315432546,1709032233849,-500.0,0.00022899,2]
[315432547,1709032233858,-500.0,0.00022899,2]
[315432548,1709032233867,-500.0,0.00022899,2]
[315432549,1709032233878,-500.0,0.00022899,2]
[315432550,1709032233887,-500.0,0.00022899,2]
[315432551,1709032233897,-500.0,0.00022899,2]
[315432552,1709032233907,-500.0,0.00022899,2]
[315432553,1709032233916,-500.0,0.00022899,2]
[315432554,1709032233926,-500.0,0.00022899,2]
[315432555,1709032233936,-500.0,0.00022899,2]
[315432556,1709032233945,-500.0,0.00022899,2]
[315432557,1709032233956,-500.0,0.00022899,2]
[315432558,1709032233965,-500.0,0.00022899,2]
[315432559,1709032233974,-488.56344505,0.00022899,2]
[315432560,1709032233983,-500.0,0.00022899,2]
[315432561,1709032233992,-500.0,0.00022899,2]
[315432562,1709032234001,-500.0,0.00022899,2]
[315432563,1709032234011,-1095.9,0.00022899,2]
[315432564,1709032234020,-1095.9,0.00022899,2]
[315432565,1709032234029,-1095.9,0.00022899,2]
[315432566,1709032234041,-614.2557224,0.00022899,2]
[315432567,1709032234051,-500.0,0.00022899,2]
[315432568,1709032234061,-500.0,0.00022899,2]
[315432569,1709032234070,-500.0,0.00022899,2]
[315432570,1709032234080,-605.07,0.00022899,2]
[315432571,1709032234089,-500.0,0.00022899,2]
[315432572,1709032234099,-500.0,0.00022899,2]
[315432573,1709032234108,-214.15,0.00022899,2]
[315432574,1709032234118,-500.0,0.00022899,2]
[315432575,1709032234128,-500.0,0.00022899,2]
[315432576,1709032234137,-500.0,0.00022899,2]
[315432577,1709032234317,-500.0,0.00022899,2]
[315432578,1709032234327,-500.0,0.00022899,2]
[315432579,1709032234336,-500.0,0.00022899,2]
[315432580,1709032234345,-1058.42,0.00022899,2]
[315432581,1709032234355,-1058.42,0.00022899,2]
[315432582,1709032234364,-1058.42,0.00022899,2]
[315432583,1709032234373,-500.0,0.00022899,2]
[315432584,1709032234382,-500.0,0.00022899,2]
[315432585,1709032234391,-1056.59,0.00022899,2]
[315432586,1709032234400,-1056.59,0.00022899,2]
[315432587,1709032234409,-1056.59,0.00022899,2]
[315432588,1709032234419,-662.79,0.00022899,2]
[315432589,1709032234428,-662.79,0.00022899,2]
[315432590,1709032234437,-500.0,0.00022899,2]
[315432591,1709032234447,-500.0,0.00022899,2]
[315432592,1709032234455,-3065.67,0.00022899,2]
[315432593,1709032234464,-3065.67,0.00022899,2]
[315432594,1709032234473,-3065.67,0.00022899,2]
[315432595,1709032234482,-500.0,0.00022899,2]
[315432596,1709032234492,-500.0,0.00022899,2]
[315432597,1709032234501,-632.34,0.00022899,2]
[315432598,1709032234510,-150.0,0.00022899,2]
[315432599,1709032234519,-573.7,0.00022899,2]
[315432600,1709032234528,-500.0,0.00022899,2]
[315432601,1709032234537,-500.0,0.00022899,2]
[315432602,1709032234547,-500.0,0.00022899,2]
[315432603,1709032234556,-537.49,0.00022899,2]
[315432604,1709032234565,-537.49,0.00022899,2]
[315432605,1709032234574,-537.49,0.00022899,2]
[315432606,1709032234584,-537.49,0.00022899,2]
[315432607,1709032234596,-500.0,0.00022899,2]
[315432608,1709032234605,-500.0,0.00022899,2]
[315432609,1709032234615,-500.0,0.00022899,2]
[315432610,1709032234623,-195.90334972,0.000229,2]
[315432611,1709032234632,-128078.3088995,0.000229,4]
[315432612,1709032234651,-1378.75912884,0.000229,4]
[315432613,1709032234663,-3053.03600406,0.000229,4]
[315432614,1709032234675,-5636.0,0.000229,4]
[315432615,1709032234686,-2735.81044863,0.000229,4]
[315432618,1709032237821,-249.38,0.00021918,2]
[315432619,1709032237831,-236.71518368,0.00022768,2]
[315432620,1709032237840,-152.9106692,0.00022769,2]
[315432621,1709032237849,-576.94744279,0.000229,4]
[315432622,1709032237932,-25611.36203813,0.000229,4]
[315432623,1709032237943,-473.36181938,0.000229,4]
[315432624,1709032237964,-1285.56037003,0.000229,4]
[315432625,1709032238048,-1425.55232555,0.000229,4]
[315432626,1709032238060,-3440.53675672,0.000229,4]
[315432627,1709032238072,-2131.94229734,0.000229,4]
[315432863,1709032240471,-613.46221154,0.00022899,2]
[315432866,1709032240484,-193.32356418,0.00022899,2]
[315432868,1709032240493,-255.20226139,0.000229,4]
[315432872,1709032240528,-1242.4,0.000229,4]
[315432875,1709032240541,-501.5503496,0.000229,4]
[315432877,1709032240554,-379.90042183,0.000229,4]
[315432935,1709032241191,-167918.17205393,0.000229,4]
[315432939,1709032241221,-753.83647302,0.000229,4]
[315432948,1709032241293,-997.75373023,0.000229,4]
[315432950,1709032241310,-350.55781886,0.000229,4]
[315432952,1709032241324,-4966.7063304,0.000229,4]
[315432954,1709032241337,-321.76073503,0.000229,4]
[315432957,1709032241349,-557.57111248,0.000229,4]
[315432959,1709032241362,-1485.45068664,0.000229,4]
[315432961,1709032241374,-10537.67168382,0.000229,4]
[315432963,1709032241386,-306.09729367,0.000229,4]
[315432966,1709032241398,-422.96869496,0.000229,4]
[315432968,1709032241410,-6963.04944095,0.000229,4]
[315432970,1709032241420,-275661.95055909,0.000229,4]
[315432972,1709032241433,-299.57396,0.000229,4]
[315433123,1709032242985,-211.0,0.00020641,2]
[315433124,1709032242994,-211.0,0.00021737,2]
[315433125,1709032243003,-913.25,0.00022739,2]
[315433126,1709032243012,-913.25,0.00022739,2]
[315433127,1709032243021,-913.25,0.00022739,2]
[315433128,1709032243030,-211.0,0.00022833,2]
[315433129,1709032243039,-500.0,0.00022898,2]
[315433130,1709032243048,-500.0,0.00022899,2]
[315433131,1709032243057,-913.25,0.00022899,2]
[315433132,1709032243066,-913.25,0.00022899,2]
[315433133,1709032243078,-8876.01288132,0.000229,4]
[315433134,1709032243148,-913.25,0.00022899,2]
[315433135,1709032243158,-24248.02933503,0.000229,4]
[315433141,1709032243206,-4610.61476524,0.000229,4]
[315433428,1709032246045,-152.91066921,0.00022769,2]
[315433430,1709032246056,-207.81,0.0002289,3]
[315433432,1709032246066,-734.8133568,0.00022899,2]
[315433434,1709032246077,-178.4366432,0.00022899,2]
[315433436,1709032246087,-2821.41597326,0.000229,4]
[315433439,1709032246102,-3246.49999999,0.000229,4]
[315433441,1709032246113,-2182.95239164,0.000229,4]
[315433444,1709032246125,-267.48801713,0.000229,4]
[315433448,1709032246159,-362.84292556,0.000229,4]
[315433450,1709032246171,-904.64662748,0.000229,4]
[315433457,1709032246228,-1866.60714684,0.000229,4]
[315433488,1709033374152,-155.0,0.00018593,2]
[315433489,1709033374172,-169.03409691,0.00018594,2]
[315433490,1709033374193,-2928.05132031,0.00018693,2]
[315433491,1709033374212,-1332.99683842,0.00018694,2]
[315433492,1709033374231,-698.00964499,0.00019109,2]
[315433503,1709033432179,-73.98035501,0.00019109,2]
[315433504,1709033432191,-866.07124137,0.00020273,2]
[315433505,1709033432202,-204.0,0.00020274,2]
[315433506,1709033432214,-151.0,0.00020641,2]
[315433507,1709033432226,-169.03409689,0.00020747,2]
[315433508,1709033432237,-500.0,0.00020972,2]
[315433509,1709033432249,-250.0,0.00020975,2]
[315433510,1709033432260,-288.54,0.00020975,2]
[315433511,1709033432272,-500.0,0.00020988,2]
[315433512,1709033432283,-200.0,0.00020993,2]
[315433513,1709033432295,-1764.54,0.00020997,2]
[315433514,1709033432305,-558.77,0.00021002,2]
[315433515,1709033432315,-166.73460392,0.00021092,2]
[315433516,1709033432327,-621.01,0.00021093,2]
[315433517,1709033432340,-200.0,0.00021094,2]
[315433518,1709033432351,-14536.87,0.00021094,2]
[315433519,1709033432362,-150.0,0.00021124,2]
[315433520,1709033432373,-2366.0,0.0002113,2]
[315433521,1709033432384,-200.0,0.00021134,2]
[315433522,1709033432395,-866.09,0.00021136,2]
[315433523,1709033432407,-250.0,0.00021149,2]
[315433524,1709033432418,-1852.42,0.00021155,2]
[315433525,1709033432429,-2928.05132031,0.00021226,2]
[315433526,1709033432441,-21760.61,0.00021227,2]
[315433527,1709033432452,-441.23,0.00021261,2]
[315433528,1709033432463,-2000.0,0.00021268,2]
[315433529,1709033432474,-4850.04868947,0.00021285,2]
[315433530,1709033432484,-150.99,0.00021295,2]
[315433531,1709033432495,-771.99,0.00021372,2]
[315433532,1709033432509,-155.31,0.00021386,2]
[315433533,1709033432521,-155.31,0.00021498,2]
[315433534,1709033432531,-192.63,0.00021536,2]
[315433537,1709033432543,-155.31,0.00021609,2]
[315433540,1709033432555,-407.07,0.00021626,2]
[315433545,1709033432567,-1838.84,0.00021626,2]
[315433546,1709033432579,-407.07,0.00021626,2]
[315433547,1709033432591,-947.43,0.00021626,2]
[315433548,1709033432602,-407.07,0.00021626,2]
[315433549,1709033432614,-171.12,0.0002168,2]
[315433550,1709033432625,-3381.615,0.00021685,2]
[315433551,1709033432637,-155.31,0.00021721,2]
[315433552,1709033432647,-155.31,0.00021832,2]
[315433553,1709033432658,-407.07,0.00021841,2]
[315433554,1709033432669,-167.0,0.00021913,2]
[315433555,1709033432681,-157.68,0.00021918,2]
[315433556,1709033432692,-919.42,0.00021941,2]
[315433557,1709033432703,-155.31,0.00021944,2]
[315433558,1709033432715,-162.47,0.00021949,2]
[315433559,1709033432726,-240.53929288,0.00021979,2]
[315433560,1709033432738,-462.57556324,0.0002198,2]
[315433561,1709033432750,-403.80587945,0.00021981,2]
[315433562,1709033432761,-209.97905731,0.00021981,2]
[315433563,1709033432771,-403.80587945,0.00021982,2]
[315433564,1709033432790,-462.57556324,0.00021983,2]
[315433565,1709033432803,-240.53929288,0.00021983,2]
[315433566,1709033432813,-240.53929288,0.00021984,2]
[315433567,1709033432824,-1284.93211998,0.00021985,2]
[315433568,1709033432836,-1284.93211998,0.00021989,2]
[315433569,1709033432848,-1284.93211998,0.0002199,2]
[315433570,1709033432862,-462.57556324,0.00021992,2]
[315433571,1709033432874,-403.80587945,0.00021993,2]
[315433572,1709033432888,-209.97905731,0.00021993,2]
[315433573,1709033432899,-1284.93211998,0.00021996,2]
[315433574,1709033432911,-240.53929288,0.00021996,2]
[315433575,1709033432922,-403.80587945,0.00021997,2]
[315433576,1709033432934,-462.57556324,0.00021997,2]
[315433577,1709033432947,-209.97905731,0.00021999,2]
[315433578,1709033432957,-209.97905731,0.00022,2]
[315433579,1709033432967,-155.0,0.00022,2]
[315433580,1709033432978,-177.9,0.00022,2]
[315433581,1709033432989,-1750.0,0.00022,3]
[315433582,1709033432999,-155.31,0.00022055,2]
[315433583,1709033433014,-218.37687202,0.000221,3]
[315433584,1709033433026,-284.87828893,0.000221,3]
[315433585,1709033433036,-241.40186782,0.000221,3]
[315433586,1709033433047,-157.68,0.00022117,2]
[315433587,1709033433068,-194.66643057,0.00022144,2]
[315433588,1709033433079,-424.3,0.00022164,2]
[315433589,1709033433095,-155.31,0.00022167,2]
[315433590,1709033433107,-1500.0,0.00022214,2]
[315433591,1709033433120,-315.76,0.00022265,2]
[315433592,1709033433131,-344.82,0.00022265,2]
[315433593,1709033433143,-826.52,0.00022265,2]
[315433594,1709033433154,-433.37,0.00022265,2]
[315433595,1709033433166,-155.31,0.00022278,2]
[315433596,1709033433177,-162.47,0.00022315,2]
[315433597,1709033433190,-157.68,0.00022316,2]
[315433598,1709033433200,-155.31,0.00022389,2]
[315433599,1709033433212,-150.0,0.0002247,2]
[315433600,1709033433223,-204.0,0.00022481,5]
[315433601,1709033433234,-2836.588491,0.000225,2]
[315433602,1709033433245,-155.31,0.00022501,2]
[315433603,1709033433256,-157.68,0.00022516,2]
[315433604,1709033433266,-1500.0,0.00022532,2]
[315433605,1709033433277,-177.9,0.00022548,2]
[315433606,1709033433288,-2685.0,0.000226,2]
[315433607,1709033433300,-150.0,0.00022629,2]
[315433608,1709033433311,-359.6265,0.00022639,2]
[315433609,1709033433322,-150.0,0.00022655,2]
[315433610,1709033433333,-150.0,0.00022656,2]
[315433611,1709033433345,-162.47,0.00022681,2]
[315433612,1709033433356,-2000.0,0.000227,2]
[315433613,1709033433367,-186.83697916,0.00022701,2]
[315433614,1709033433378,-157.68,0.00022715,2]
[315433615,1709033433389,-621.01,0.00022737,2]
[315433616,1709033433400,-500.0,0.00022739,2]
[315433617,1709033433411,-500.0,0.00022739,2]
[315433618,1709033433422,-500.0,0.00022739,2]
[315433619,1709033433433,-500.0,0.00022739,2]
[315433620,1709033433444,-500.0,0.00022739,2]
[315433621,1709033433455,-500.0,0.00022739,2]
[315433622,1709033433466,-500.0,0.00022739,2]
[315433623,1709033433477,-500.0,0.00022739,2]
[315433624,1709033433488,-520.8704777,0.00022739,2]
[315433625,1709033433499,-155.05,0.0002274,2]
[315433626,1709033433509,-155.46,0.0002274,2]
[315433627,1709033433519,-150.0,0.00022755,2]
[315433628,1709033433530,-152.9106692,0.00022769,2]
[315433629,1709033433542,-1061.83,0.0002279,3]
[315433630,1709033433552,-530.92,0.0002279,3]
[315433631,1709033433563,-265.46,0.0002279,3]
[315433632,1709033433573,-796.4,0.0002279,3]
[315433633,1709033433586,-71817.14229016,0.000228,2]
[315433634,1709033433597,-6325.5806,0.000228,2]
[315433635,1709033433607,-500.0,0.000228,2]
[315433636,1709033433618,-330.86924882,0.000228,2]
[315433637,1709033433628,-4089.80985919,0.000228,2]
[315433638,1709033433639,-253.817859,0.000228,2]
[315433639,1709033433649,-25540.73,0.000228,2]
[315433640,1709033433659,-153.05144852,0.000228,2]
[315433641,1709033433670,-800.0,0.00022815,2]
[315433642,1709033433680,-200.0,0.00022816,2]
[315433643,1709033433691,-800.0,0.00022816,2]
[315433644,1709033433701,-200.0,0.00022816,2]
[315433645,1709033433711,-150.0,0.00022837,2]